[Event "19th IPCA WCC 2019"]
[Site "Ruzomberok"]
[Date "2019.07.05"]
[Round "8.9"]
[White "Glazar, Domagoj"]
[Black "Jurkiewicz, Krzysztof"]
[Result "0-1"]
[ECO "A01"]
[WhiteElo "2153"]
[BlackElo "2275"]
[Annotator "NA"]
[PlyCount "88"]
[EventDate "2019.06.28"]
[EventType "swiss"]
[EventCountry "SVK"]
[SourceTitle "playchess.com"]
[Source "ChessBase"]
[SourceQuality "1"]
[TimeControl "5400+30"]

1. b3 {[%emt 0:01:53]} d6 {[%emt 0:00:26]} 2. Bb2 {[%emt 0:00:10]} e5 {[%emt 0:02:18]} 3. d4 {[%emt 0:01:17]} exd4 {[%emt 0:00:37]} 4. Qxd4 {[%emt 0:00:53]} Nc6 {[%emt 0:02:02]} 5. Qd2 {[%emt 0:00:16]} Nf6 {[%emt 0:02:50]} 6. Nc3 {[%emt 0:07:49]} Be7 {[%emt 0:02:30]} 7. e4 {[%emt 0:01:04]} O-O {[%emt 0:01:09]} 8. O-O-O {[%emt 0:00:22]} a5 {[%emt 0:01:11]} 9. f3 {[%emt 0:03:46]} Be6 {[%emt 0:07:03]} 10. Kb1 {[%emt 0:01:43]} Nd7 {[%emt 0:02:18]} 11. Nge2 {[%emt 0:01:04]} Nc5 {[%emt 0:01:47]} 12. Nd5 {[%emt 0:03:43]} Bxd5 {[%emt 0:09:08]} 13. exd5 {[%emt 0:00:15]} Ne5 {[%emt 0:00:43]} 14. Ng3 {[%emt 0:02:52]} a4 {[%emt 0:02:55]} 15. b4 {[%emt 0:04:01]} Ncd7 {[%emt 0:02:52]} 16. a3 {[%emt 0:02:00]} Ng6 {[%emt 0:09:33]} 17. f4 {[%emt 0:02:51]} Bf6 {[%emt 0:00:45]} 18. c3 {[%emt 0:00:32]} Re8 {[%emt 0:06:29]} 19. Nh5 {[%emt 0:01:33]} Qe7 {[%emt 0:00:47]} 20. Bb5 {[%emt 0:02:24]} Qe4+ {[%emt 0:07:00]} 21. Ka1 {[%emt 0:00:41]} Re7 {[%emt 0:03:05]} 22. Nxf6+ {[%emt 0:00:56]} Nxf6 {[%emt 0:01:12]} 23. Rhe1 {[%emt 0:02:04]} Qxd5 {[%emt 0:01:42]} 24. Bd3 {[%emt 0:04:06]} Rxe1 {[%emt 0:01:01]} 25. Qxe1 {[%emt 0:00:43]} Qxg2 {[%emt 0:01:01]} 26. Rd2 {[%emt 0:01:39]} Qf3 {[%emt 0:00:49]} 27. f5 {[%emt 0:01:38]} Re8 {[%emt 0:01:39]} 28. Be2 {[%emt 0:06:59]} Qxf5 {[%emt 0:00:33]} 29. Qg1 {[%emt 0:02:53]} Nf4 {[%emt 0:01:38]} 30. Bd1 {[%emt 0:00:20]} b5 {[%emt 0:05:02]} 31. c4 {[%emt 0:00:44]} bxc4 {[%emt 0:00:28]} 32. Bxa4 {[%emt 0:00:15]} Re2 {[%emt 0:02:01]} 33. Bc2 {[%emt 0:02:50]} Qe6 {[%emt 0:00:30]} 34. Qd4 {[%emt 0:05:54]} Re1+ {[%emt 0:02:05]} 35. Bb1 {[%emt 0:01:55]} Nd3 {[%emt 0:00:51]} 36. Bc3 {[%emt 0:00:56]} Rh1 {[%emt 0:02:12]} 37. Qh4 {[%emt 0:01:45]} Rg1 {[%emt 0:01:45]} 38. a4 {[%emt 0:02:50]} d5 {[%emt 0:01:54]} 39. Bd4 {[%emt 0:01:41]} Rg4 {[%emt 0:01:28]} 40. Bxf6 {[%emt 0:00:32]} Rxh4 {[%emt 0:00:16]} 41. Bxh4 {[%emt 0:00:06]} Qe5+ {[%emt 0:00:42]} 42. Ka2 {[%emt 0:00:45]} Nc1+ {[%emt 0:01:29]} 43. Ka3 {[%emt 0:00:46]} Qa1+ {[%emt 0:00:23]} 44. Ba2 {[%emt 0:00:25]} Qc3+ {[%emt 0:00:07]} 0-1

[Event "19th IPCA WCC 2019"]
[Site "Ruzomberok"]
[Date "2019.07.05"]
[Round "8.10"]
[White "Tsapalin, Sergey"]
[Black "Juvan, Jaka"]
[Result "0-1"]
[ECO "A18"]
[WhiteElo "1935"]
[BlackElo "2168"]
[Annotator "NA"]
[PlyCount "62"]
[EventDate "2019.06.28"]
[EventType "swiss"]
[EventCountry "SVK"]
[SourceTitle "playchess.com"]
[Source "ChessBase"]
[SourceQuality "1"]
[TimeControl "5400+30"]

1. c4 {[%emt 0:00:00]} Nf6 {[%emt 0:00:00]} 2. Nc3 {[%emt 0:00:00]} e6 {[%emt 0:00:00]} 3. e4 {[%emt 0:00:01]} d5 {[%emt 0:05:40]} 4. e5 {[%emt 0:00:29]} d4 {[%emt 0:01:01]} 5. exf6 {[%emt 0:00:24]} dxc3 {[%emt 0:00:06]} 6. bxc3 {[%emt 0:00:29]} Qxf6 {[%emt 0:00:23]} 7. d4 {[%emt 0:00:23]} Be7 {[%emt 0:03:25]} 8. Nf3 {[%emt 0:00:25]} h6 {[%emt 0:00:05]} 9. Bd3 {[%emt 0:00:32]} c5 {[%emt 0:05:28]} 10. O-O {[%emt 0:00:51]} Nc6 {[%emt 0:06:16]} 11. Bb2 {[%emt 0:01:07]} O-O {[%emt 0:01:38]} 12. Qe2 {[%emt 0:01:33]} Bd6 {[%emt 0:01:48]} 13. Rad1 {[%emt 0:03:47]} Ne7 {[%emt 0:01:50]} 14. Nd2 {[%emt 0:01:01]} Nc6 {[%emt 0:08:35]} 15. Ne4 {[%emt 0:02:15]} Qe7 {[%emt 0:00:08]} 16. Nxd6 {[%emt 0:00:22]} Qxd6 {[%emt 0:00:02]} 17. Qe4 {[%emt 0:00:28]} f5 {[%emt 0:00:53]} 18. Qe3 {[%emt 0:00:52]} e5 {[%emt 0:09:07]} 19. dxc5 {[%emt 0:05:03]} Qf6 {[%emt 0:05:02]} 20. f4 {[%emt 0:00:29]} Be6 {[%emt 0:04:41]} 21. fxe5 {[%emt 0:12:38]} Nxe5 {[%emt 0:02:06]} 22. Rfe1 {[%emt 0:00:26]} Nxc4 {[%emt 0:00:23]} 23. Bxc4 {[%emt 0:00:10]} Bxc4 {[%emt 0:00:11]} 24. Rd6 {[%emt 0:00:45]} Qf7 25. Qd4 {[%emt 0:09:21]} Rae8 {[%emt 0:03:04]} 26. Rxe8 {[%emt 0:24:31]} Rxe8 {[%emt 0:00:02]} 27. h3 {[%emt 0:00:19]} Re4 {[%emt 0:06:06]} 28. Rd8+ {[%emt 0:03:16]} Kh7 {[%emt 0:00:03]} 29. Qd6 {[%emt 0:09:50]} Re2 {[%emt 0:09:51]} 30. Rd7 {[%emt 0:01:32]} Qe8 {[%emt 0:00:12]} 31. Qd4 {[%emt 0:00:52]} Qg6 {[%emt 0:00:10]} 0-1

[Event "19th IPCA WCC 2019"]
[Site "Ruzomberok"]
[Date "2019.07.05"]
[Round "8.11"]
[White "Belak, Stefan"]
[Black "Wielecki, Zygmunt"]
[Result "1/2-1/2"]
[ECO "A11"]
[WhiteElo "1851"]
[BlackElo "2145"]
[Annotator "NA"]
[PlyCount "31"]
[EventDate "2019.06.28"]
[EventType "swiss"]
[EventCountry "SVK"]
[SourceTitle "playchess.com"]
[Source "ChessBase"]
[SourceQuality "1"]
[TimeControl "5400+30"]

1. c4 {[%emt 0:00:00]} c6 {[%emt 0:00:00]} 2. d4 {[%emt 0:02:03]} b5 {[%emt 0:01:19]} 3. e3 {[%emt 0:02:37]} a6 {[%emt 0:03:02]} 4. Nf3 {[%emt 0:08:16]} Nf6 {[%emt 0:00:17]} 5. Qb3 {[%emt 0:04:50]} e6 {[%emt 0:00:59]} 6. Nc3 {[%emt 0:04:19]} Be7 {[%emt 0:01:30]} 7. Bd3 {[%emt 0:02:10]} bxc4 {[%emt 0:02:30]} 8. Bxc4 {[%emt 0:00:13]} d5 {[%emt 0:26:18]} 9. Be2 {[%emt 0:02:49]} Nbd7 {[%emt 0:00:57]} 10. Qc2 {[%emt 0:08:01]} c5 {[%emt 0:03:03]} 11. O-O {[%emt 0:07:00]} Bd6 {[%emt 0:02:16]} 12. h3 {[%emt 0:07:24]} O-O {[%emt 0:00:39]} 13. e4 {[%emt 0:01:58]} cxd4 {[%emt 0:03:21]} 14. Nxd4 {[%emt 0:00:53]} Bb7 {[%emt 0:00:44]} 15. exd5 {[%emt 0:04:19]} Nxd5 {[%emt 0:02:01]} 16. Nxd5 {[%emt 0:01:45]} 1/2-1/2

[Event "19th IPCA WCC 2019"]
[Site "Ruzomberok"]
[Date "2019.07.05"]
[Round "8.12"]
[White "Gerasimova, Svetlana"]
[Black "Matana, Zoran"]
[Result "1-0"]
[ECO "B54"]
[WhiteElo "1913"]
[BlackElo "1818"]
[Annotator "NA"]
[PlyCount "87"]
[EventDate "2019.06.28"]
[EventType "swiss"]
[EventCountry "SVK"]
[SourceTitle "playchess.com"]
[Source "ChessBase"]
[SourceQuality "1"]
[TimeControl "5400+30"]

1. e4 {[%emt 0:00:00]} c5 {[%emt 0:00:00]} 2. Nf3 {[%emt 0:00:00]} d6 {[%emt 0:00:10]} 3. d4 {[%emt 0:00:00]} cxd4 {[%emt 0:00:16]} 4. Nxd4 {[%emt 0:00:00]} a6 {[%emt 0:00:21]} 5. Nc3 {[%emt 0:00:00]} g6 {[%emt 0:00:29]} 6. Be3 {[%emt 0:00:35]} Nf6 {[%emt 0:00:20]} 7. f3 {[%emt 0:00:30]} b5 {[%emt 0:00:44]} 8. Qd2 {[%emt 0:01:34]} h5 {[%emt 0:02:18]} 9. O-O-O {[%emt 0:03:05]} Nbd7 {[%emt 0:00:22]} 10. Kb1 {[%emt 0:04:46]} Bb7 {[%emt 0:00:05]} 11. Nb3 {[%emt 0:06:16]} Bg7 {[%emt 0:01:16]} 12. a3 {[%emt 0:09:38]} Rc8 {[%emt 0:00:27]} 13. Be2 {[%emt 0:07:28]} Qc7 {[%emt 0:01:39]} 14. Rhe1 {[%emt 0:00:18]} O-O {[%emt 0:01:42]} 15. Bh6 {[%emt 0:05:36]} Ne5 {[%emt 0:02:23]} 16. Bxg7 {[%emt 0:02:05]} Kxg7 {[%emt 0:00:09]} 17. f4 {[%emt 0:02:49]} Nc4 {[%emt 0:00:19]} 18. Bxc4 {[%emt 0:00:05]} bxc4 {[%emt 0:02:34]} 19. Nd4 {[%emt 0:00:41]} e5 {[%emt 0:05:40]} 20. fxe5 {[%emt 0:01:58]} dxe5 {[%emt 0:00:04]} 21. Nf5+ {[%emt 0:00:18]} Kg8 {[%emt 0:07:35]} 22. Qh6 {[%emt 0:01:29]} Ne8 {[%emt 0:05:50]} 23. Qg5 {[%emt 0:03:24]} Rb8 {[%emt 0:02:18]} 24. Ne7+ {[%emt 0:12:01]} Kh7 {[%emt 0:00:56]} 25. g4 {[%emt 0:02:09]} Ng7 {[%emt 0:02:30]} 26. Ncd5 {[%emt 0:00:30]} Bxd5 {[%emt 0:00:30]} 27. Nxd5 {[%emt 0:00:04]} f6 {[%emt 0:00:49]} 28. Nxf6+ {[%emt 0:00:40]} Rxf6 {[%emt 0:03:57]} 29. Qxf6 {[%emt 0:00:05]} Rb6 {[%emt 0:00:44]} 30. Rd7 {[%emt 0:12:00]} Rxb2+ {[%emt 0:04:58]} 31. Kxb2 {[%emt 0:00:17]} Qxd7 {[%emt 0:00:13]} 32. Qxe5 {[%emt 0:00:37]} Qxg4 {[%emt 0:02:03]} 33. Rf1 {[%emt 0:00:52]} Qd7 {[%emt 0:03:07]} 34. Qd5 {[%emt 0:00:26]} c3+ {[%emt 0:06:53]} 35. Kxc3 {[%emt 0:00:56]} Qc7+ {[%emt 0:00:11]} 36. Qc4 {[%emt 0:00:50]} Qa5+ {[%emt 0:03:21]} 37. Kb3 {[%emt 0:01:22]} Qb6+ {[%emt 0:01:27]} 38. Ka2 {[%emt 0:00:14]} Kh6 {[%emt 0:02:42]} 39. Rf8 {[%emt 0:00:37]} Qd6 {[%emt 0:01:28]} 40. Rh8+ {[%emt 0:01:22]} Kg5 {[%emt 0:00:23]} 41. Qd5+ {[%emt 0:01:05]} Qxd5+ {[%emt 0:00:18]} 42. exd5 {[%emt 0:00:06]} Nf5 {[%emt 0:00:47]} 43. Re8 {[%emt 0:00:07]} a5 {[%emt 0:00:19]} 44. Kb3 1-0

[Event "19th IPCA WCC 2019"]
[Site "Ruzomberok"]
[Date "2019.07.05"]
[Round "8.13"]
[White "Samarth J Rao"]
[Black "Sovetov, Oleksandr"]
[Result "0-1"]
[ECO "D00"]
[WhiteElo "1593"]
[BlackElo "2009"]
[Annotator "NA"]
[PlyCount "60"]
[EventDate "2019.06.28"]
[EventType "swiss"]
[EventCountry "SVK"]
[SourceTitle "playchess.com"]
[Source "ChessBase"]
[SourceQuality "1"]
[TimeControl "5400+30"]

1. d4 {[%emt 0:00:00]} d5 {[%emt 0:00:00]} 2. Bf4 {[%emt 0:00:00]} e6 {[%emt 0:00:15]} 3. e3 c5 {[%emt 0:00:33]} 4. c3 {[%emt 0:00:00]} Nc6 {[%emt 0:00:20]} 5. Bd3 {[%emt 0:00:01]} Bd6 {[%emt 0:00:49]} 6. Bg3 {[%emt 0:00:05]} Nf6 {[%emt 0:00:55]} 7. Nf3 {[%emt 0:00:12]} O-O {[%emt 0:01:04]} 8. Nbd2 {[%emt 0:00:06]} b6 {[%emt 0:00:28]} 9. Ne5 {[%emt 0:00:09]} Qc7 {[%emt 0:00:40]} 10. f4 {[%emt 0:00:11]} Ne7 {[%emt 0:00:24]} 11. Bh4 {[%emt 0:00:20]} Nd7 {[%emt 0:04:29]} 12. Bxe7 {[%emt 0:03:02]} Bxe7 {[%emt 0:00:05]} 13. O-O {[%emt 0:01:30]} f5 {[%emt 0:04:29]} 14. Kh1 {[%emt 0:02:55]} Nxe5 {[%emt 0:02:05]} 15. dxe5 {[%emt 0:00:14]} Bb7 {[%emt 0:00:38]} 16. g4 c4 {[%emt 0:00:49]} 17. Bc2 {[%emt 0:00:45]} d4+ {[%emt 0:00:32]} 18. Kg1 {[%emt 0:03:45]} d3 {[%emt 0:01:11]} 19. Bb1 {[%emt 0:05:55]} b5 {[%emt 0:03:14]} 20. a4 {[%emt 0:00:18]} a6 {[%emt 0:00:39]} 21. gxf5 {[%emt 0:00:35]} Rxf5 {[%emt 0:01:15]} 22. b3 {[%emt 0:00:55]} Bc5 {[%emt 0:04:41]} 23. Qe1 {[%emt 0:04:07]} Qb6 {[%emt 0:00:32]} 24. Nf3 {[%emt 0:06:37]} Bxe3+ {[%emt 0:00:47]} 25. Kg2 {[%emt 0:00:15]} Rxf4 {[%emt 0:00:29]} 26. Kg3 {[%emt 0:01:02]} Raf8 {[%emt 0:01:42]} 27. Nd4 Rxf1 {[%emt 0:03:10]} 28. Qxe3 {[%emt 0:01:37]} R1f3+ {[%emt 0:00:18]} 29. Qxf3 {[%emt 0:00:12]} Bxf3 {[%emt 0:00:05]} 30. Nxf3 {[%emt 0:00:27]} Qe3 {[%emt 0:00:07]} 0-1

[Event "19th IPCA WCC 2019"]
[Site "Ruzomberok"]
[Date "2019.07.05"]
[Round "8.14"]
[White "Kozicz, Andrzej"]
[Black "Pamarthi Audietya Aazadh"]
[Result "1-0"]
[ECO "B06"]
[WhiteElo "1979"]
[BlackElo "1346"]
[Annotator "NA"]
[PlyCount "153"]
[EventDate "2019.06.28"]
[EventType "swiss"]
[EventCountry "SVK"]
[SourceTitle "playchess.com"]
[Source "ChessBase"]
[SourceQuality "1"]
[TimeControl "5400+30"]

1. e4 {[%emt 0:00:00]} g6 {[%emt 0:00:00]} 2. d4 {[%emt 0:00:00]} Bg7 {[%emt 0:00:00]} 3. c3 {[%emt 0:00:00]} d6 {[%emt 0:00:00]} 4. Bd3 {[%emt 0:00:46]} Nd7 {[%emt 0:00:09]} 5. Ne2 {[%emt 0:01:27]} e5 {[%emt 0:01:24]} 6. Nd2 {[%emt 0:00:53]} Ngf6 {[%emt 0:00:19]} 7. Nf3 {[%emt 0:01:13]} b6 {[%emt 0:00:28]} 8. Ng3 {[%emt 0:00:29]} O-O {[%emt 0:00:19]} 9. O-O {[%emt 0:00:51]} Re8 {[%emt 0:00:14]} 10. Re1 {[%emt 0:00:49]} Bb7 {[%emt 0:00:17]} 11. Bg5 {[%emt 0:01:19]} h6 {[%emt 0:00:24]} 12. Bd2 {[%emt 0:00:36]} Rc8 {[%emt 0:00:20]} 13. Rc1 {[%emt 0:00:03]} d5 {[%emt 0:00:30]} 14. exd5 {[%emt 0:02:37]} exd4 {[%emt 0:02:43]} 15. c4 {[%emt 0:01:36]} c5 {[%emt 0:01:03]} 16. Qc2 {[%emt 0:03:50]} Qc7 {[%emt 0:01:56]} 17. Rcd1 {[%emt 0:02:25]} Ng4 {[%emt 0:04:38]} 18. h3 {[%emt 0:10:13]} Nge5 {[%emt 0:00:18]} 19. Nxe5 {[%emt 0:05:05]} Nxe5 {[%emt 0:00:39]} 20. Ne4 {[%emt 0:01:37]} f5 {[%emt 0:02:51]} 21. Ng3 {[%emt 0:01:02]} Qd6 {[%emt 0:03:30]} 22. b3 {[%emt 0:03:47]} Re7 {[%emt 0:02:04]} 23. Bxf5 {[%emt 0:03:34]} Rf8 {[%emt 0:26:57]} 24. Ne4 {[%emt 0:04:56]} Qd8 {[%emt 0:01:05]} 25. Be6+ {[%emt 0:00:40]} Kh7 {[%emt 0:01:50]} 26. f4 {[%emt 0:00:44]} Nd7 {[%emt 0:06:10]} 27. f5 {[%emt 0:00:47]} gxf5 {[%emt 0:00:45]} 28. Nd6 {[%emt 0:00:03]} Nf6 {[%emt 0:03:34]} 29. Nxf5 {[%emt 0:01:15]} Rxe6 {[%emt 0:04:12]} 30. Rxe6 {[%emt 0:00:26]} Kh8 {[%emt 0:03:06]} 31. Nxg7 {[%emt 0:03:58]} Kxg7 {[%emt 0:00:26]} 32. Rde1 {[%emt 0:00:58]} Bc8 {[%emt 0:00:31]} 33. Re7+ {[%emt 0:00:19]} Rf7 {[%emt 0:01:27]} 34. Bxh6+ {[%emt 0:00:21]} Kxh6 {[%emt 0:01:16]} 35. Rxf7 {[%emt 0:00:03]} Bxh3 {[%emt 0:02:51]} 36. Ree7 {[%emt 0:00:23]} Qg8 {[%emt 0:00:16]} 37. Rxf6+ {[%emt 0:00:54]} Kg5 {[%emt 0:01:35]} 38. Qg6+ {[%emt 0:01:23]} Qxg6 {[%emt 0:00:05]} 39. Rxg6+ {[%emt 0:00:35]} Kxg6 {[%emt 0:00:02]} 40. gxh3 {[%emt 0:00:03]} Kf6 {[%emt 0:00:03]} 41. Re6+ {[%emt 0:00:28]} Kf5 {[%emt 0:00:04]} 42. Kf2 {[%emt 0:01:09]} a5 {[%emt 0:00:07]} 43. a4 {[%emt 0:00:49]} Kg5 {[%emt 0:00:15]} 44. h4+ Kxh4 {[%emt 0:00:12]} 45. Rg6 {[%emt 0:00:54]} Kh5 {[%emt 0:00:15]} 46. Rg8 {[%emt 0:00:24]} Kh6 {[%emt 0:00:07]} 47. d6 {[%emt 0:00:21]} Kh7 {[%emt 0:00:16]} 48. d7 {[%emt 0:00:19]} Kxg8 {[%emt 0:00:09]} 49. Kf3 {[%emt 0:00:24]} Kf7 {[%emt 0:00:13]} 50. d8=Q {[%emt 0:00:06]} Ke6 {[%emt 0:00:09]} 51. Ke4 {[%emt 0:00:45]} Kf7 {[%emt 0:00:12]} 52. Kd5 {[%emt 0:00:14]} Kg6 53. Kc6 Kf5 {[%emt 0:01:23]} 54. Kxb6 {[%emt 0:01:00]} Ke4 {[%emt 0:00:14]} 55. Kxc5 {[%emt 0:00:33]} d3 {[%emt 0:00:11]} 56. Qxa5 {[%emt 0:00:38]} Ke3 {[%emt 0:00:14]} 57. Qe1+ {[%emt 0:00:40]} Kf3 {[%emt 0:00:03]} 58. b4 Kf4 59. b5 {[%emt 0:00:59]} Kf3 {[%emt 0:00:37]} 60. a5 {[%emt 0:00:07]} Kf4 {[%emt 0:00:09]} 61. a6 {[%emt 0:00:09]} Kf3 {[%emt 0:00:09]} 62. b6 {[%emt 0:00:17]} Kf4 {[%emt 0:00:35]} 63. a7 {[%emt 0:00:09]} Kf3 {[%emt 0:00:17]} 64. a8=B+ {[%emt 0:00:08]} Kf4 {[%emt 0:00:09]} 65. b7 {[%emt 0:00:25]} Kf3 {[%emt 0:00:26]} 66. b8=B+ {[%emt 0:00:05]} Kg4 {[%emt 0:00:17]} 67. Kd4 {[%emt 0:00:16]} d2 68. Qe2+ Kf5 {[%emt 0:01:03]} 69. c5 {[%emt 0:00:49]} Kg5 {[%emt 0:00:20]} 70. c6 {[%emt 0:00:15]} Kf5 {[%emt 0:00:11]} 71. c7 {[%emt 0:00:22]} Kf6 {[%emt 0:00:12]} 72. Kd5 {[%emt 0:00:14]} Kf7 {[%emt 0:00:19]} 73. Kd6 {[%emt 0:00:25]} Kf6 {[%emt 0:00:09]} 74. Qe6+ {[%emt 0:00:33]} Kg5 {[%emt 0:00:09]} 75. Bf3 {[%emt 0:00:14]} Kf4 {[%emt 0:00:24]} 76. Qe4+ {[%emt 0:00:33]} Kg3 {[%emt 0:00:08]} 77. c8=R {[%emt 0:00:34]} 1-0

[Event "19th IPCA WCC 2019"]
[Site "Ruzomberok"]
[Date "2019.07.05"]
[Round "8.15"]
[White "Angappan A"]
[Black "Jennitha, Anto K."]
[Result "0-1"]
[ECO "B92"]
[WhiteElo "1267"]
[BlackElo "1972"]
[Annotator "NA"]
[PlyCount "114"]
[EventDate "2019.06.28"]
[EventType "swiss"]
[EventCountry "SVK"]
[SourceTitle "playchess.com"]
[Source "ChessBase"]
[SourceQuality "1"]
[TimeControl "5400+30"]

1. e4 {[%emt 0:00:00]} c5 {[%emt 0:00:00]} 2. Nf3 d6 {[%emt 0:00:00]} 3. d4 {[%emt 0:00:00]} cxd4 {[%emt 0:00:00]} 4. Nxd4 {[%emt 0:00:11]} Nf6 {[%emt 0:00:00]} 5. Nc3 {[%emt 0:00:08]} a6 {[%emt 0:00:00]} 6. Be2 {[%emt 0:00:12]} e5 {[%emt 0:00:00]} 7. Nb3 {[%emt 0:00:11]} Be7 {[%emt 0:00:02]} 8. Be3 {[%emt 0:00:10]} Be6 {[%emt 0:01:02]} 9. O-O {[%emt 0:00:10]} O-O {[%emt 0:00:03]} 10. f4 {[%emt 0:00:18]} Qc7 {[%emt 0:04:58]} 11. Kh1 {[%emt 0:00:24]} Nbd7 {[%emt 0:02:30]} 12. Qe1 {[%emt 0:00:32]} b5 {[%emt 0:02:12]} 13. a3 {[%emt 0:00:19]} Bc4 {[%emt 0:12:45]} 14. Bxc4 {[%emt 0:04:20]} Qxc4 {[%emt 0:00:03]} 15. Nd2 {[%emt 0:02:07]} Qc6 {[%emt 0:00:26]} 16. Qg3 {[%emt 0:01:06]} Rfe8 {[%emt 0:09:38]} 17. Rae1 {[%emt 0:05:28]} a5 {[%emt 0:11:08]} 18. Rc1 {[%emt 0:15:17]} b4 19. axb4 {[%emt 0:01:23]} axb4 {[%emt 0:01:56]} 20. Nd5 {[%emt 0:00:39]} Nxd5 {[%emt 0:00:19]} 21. exd5 {[%emt 0:00:20]} Qxd5 {[%emt 0:00:16]} 22. Nf3 {[%emt 0:02:06]} Ra2 {[%emt 0:02:57]} 23. b3 {[%emt 0:02:20]} Bf6 {[%emt 0:02:11]} 24. fxe5 {[%emt 0:01:47]} dxe5 {[%emt 0:01:35]} 25. Qg4 {[%emt 0:01:38]} e4 {[%emt 0:01:38]} 26. Ng5 {[%emt 0:03:34]} Bxg5 {[%emt 0:10:21]} 27. Bxg5 {[%emt 0:00:23]} Ne5 {[%emt 0:01:18]} 28. Qf5 {[%emt 0:02:21]} g6 {[%emt 0:01:29]} 29. Qf6 {[%emt 0:03:07]} Re6 {[%emt 0:01:16]} 30. Qf4 {[%emt 0:00:14]} f5 {[%emt 0:12:40]} 31. h3 {[%emt 0:03:40]} Qc5 {[%emt 0:05:04]} 32. Qd2 {[%emt 0:01:39]} Rd6 {[%emt 0:01:51]} 33. Qe2 {[%emt 0:01:35]} Rc6 {[%emt 0:03:25]} 34. Rf2 {[%emt 0:01:41]} Nd3 {[%emt 0:02:15]} 35. Rff1 {[%emt 0:06:34]} Nxc1 {[%emt 0:00:13]} 36. Rxc1 {[%emt 0:00:22]} Rxc2 {[%emt 0:02:13]} 37. Rxc2 {[%emt 0:00:17]} Qxc2 {[%emt 0:00:02]} 38. Qb5 {[%emt 0:00:53]} Qd1+ {[%emt 0:01:35]} 39. Kh2 {[%emt 0:00:10]} Qd6+ {[%emt 0:00:02]} 40. Kh1 {[%emt 0:00:47]} Ra6 {[%emt 0:02:07]} 41. Qc4+ {[%emt 0:02:03]} Qe6 {[%emt 0:00:49]} 42. Qd4 {[%emt 0:02:34]} Qd6 {[%emt 0:00:52]} 43. Qc4+ {[%emt 0:00:37]} Kg7 {[%emt 0:00:12]} 44. Qc1 {[%emt 0:00:43]} Rc6 {[%emt 0:00:59]} 45. Qe3 {[%emt 0:02:42]} Qc5 {[%emt 0:02:33]} 46. Qd2 {[%emt 0:02:09]} Rd6 {[%emt 0:00:21]} 47. Qb2+ {[%emt 0:02:42]} Qc3 {[%emt 0:00:21]} 48. Qf2 {[%emt 0:01:56]} Qa1+ {[%emt 0:02:45]} 49. Kh2 {[%emt 0:00:16]} Rd1 {[%emt 0:01:59]} 50. Be3 {[%emt 0:01:47]} Rh1+ {[%emt 0:00:12]} 51. Kg3 {[%emt 0:00:14]} Qe1 {[%emt 0:00:02]} 52. Qxe1 {[%emt 0:00:52]} Rxe1 {[%emt 0:00:05]} 53. Bd2 {[%emt 0:00:10]} Rb1 {[%emt 0:00:06]} 54. Kf4 {[%emt 0:00:41]} Rxb3 {[%emt 0:00:02]} 55. h4 {[%emt 0:00:21]} Rb2 {[%emt 0:00:24]} 56. Be1 {[%emt 0:00:21]} Rxg2 {[%emt 0:00:09]} 57. Bxb4 {[%emt 0:00:06]} Rg4+ {[%emt 0:00:06]} 0-1

[Event "19th IPCA WCC 2019"]
[Site "Ruzomberok"]
[Date "2019.07.05"]
[Round "8.16"]
[White "Roehrig, Uwe"]
[Black "Zicho, Anton"]
[Result "0-1"]
[ECO "A13"]
[WhiteElo "1802"]
[BlackElo "1662"]
[Annotator "NA"]
[PlyCount "60"]
[EventDate "2019.06.28"]
[EventType "swiss"]
[EventCountry "SVK"]
[SourceTitle "playchess.com"]
[Source "ChessBase"]
[SourceQuality "1"]
[TimeControl "5400+30"]

1. c4 {[%emt 0:00:00]} e6 {[%emt 0:01:16]} 2. g3 {[%emt 0:00:16]} d5 {[%emt 0:02:18]} 3. Bg2 {[%emt 0:01:15]} Nf6 {[%emt 0:03:25]} 4. Nf3 {[%emt 0:02:38]} Bc5 {[%emt 0:11:43]} 5. O-O {[%emt 0:01:25]} O-O {[%emt 0:07:15]} 6. b3 {[%emt 0:01:52]} c6 {[%emt 0:03:47]} 7. d3 {[%emt 0:01:47]} e5 {[%emt 0:04:50]} 8. Bb2 {[%emt 0:03:32]} e4 {[%emt 0:04:59]} 9. Nd4 {[%emt 0:04:22]} Re8 {[%emt 0:05:04]} 10. h3 {[%emt 0:03:41]} dxc4 {[%emt 0:07:40]} 11. dxc4 {[%emt 0:00:21]} Qe7 {[%emt 0:07:54]} 12. e3 {[%emt 0:02:10]} Qe5 {[%emt 0:06:08]} 13. Qc2 {[%emt 0:01:25]} Qh5 {[%emt 0:01:35]} 14. h4 {[%emt 0:08:32]} Bg4 {[%emt 0:07:22]} 15. Nc3 {[%emt 0:02:20]} Bxd4 {[%emt 0:04:21]} 16. exd4 {[%emt 0:00:53]} Bf5 {[%emt 0:02:57]} 17. Qd1 {[%emt 0:01:11]} Bg4 {[%emt 0:00:33]} 18. f3 {[%emt 0:00:50]} exf3 {[%emt 0:01:49]} 19. Bxf3 {[%emt 0:00:30]} Bxf3 {[%emt 0:01:02]} 20. Rxf3 {[%emt 0:01:53]} Nbd7 {[%emt 0:02:19]} 21. Qf1 {[%emt 0:01:00]} Re7 {[%emt 0:01:45]} 22. Kg2 {[%emt 0:03:45]} Rae8 {[%emt 0:00:12]} 23. Rf5 {[%emt 0:02:11]} Qg4 {[%emt 0:01:21]} 24. Bc1 {[%emt 0:05:11]} Qxd4 {[%emt 0:01:29]} 25. Bb2 {[%emt 0:04:39]} Qd2+ {[%emt 0:01:52]} 26. Rf2 {[%emt 0:00:44]} Qd4 {[%emt 0:00:39]} 27. Nd5 {[%emt 0:00:38]} Qe4+ {[%emt 0:00:34]} 28. Kh2 {[%emt 0:01:40]} cxd5 {[%emt 0:00:14]} 29. Rf4 {[%emt 0:02:13]} Qe2+ {[%emt 0:00:16]} 30. Kh3 {[%emt 0:00:55]} Qxb2 {[%emt 0:00:20]} 0-1